Cogmind - Beta 9.3 @@@ ROGUE MODE // 2019.12.17 @ 18:10:49 // Winter2019/RPGLIKE Player: spruce (@macklemurr) Result: Destroyed by as-38780 with Assembled Heavy Rifle Performance ------------- Evolutions (0) 0 Regions Visited (4) 800 Robots Destroyed (33) 165 Value Destroyed (614) 614 Prototype IDs (22) 440 Alien Tech Used (0) 0 Bonus (300) 300 TOTAL SCORE: 2319 Bonus ------- Aligned with FarCom 300 Cogmind --------- Core Integrity 0/700 Matter 300/300 Energy 160/160 System Corruption 0% Temperature Cool (0) Movement Walking (45) Location -9/Mines Parts ------- > --- POWER (1) -------- Light Nuclear Core > --- PROPULSION (2) --- Potential Leg Potential Leg > --- UTILITY (2) ------ Signal Interpreter Terrain Scanner > --- WEAPON (2) ------- Guided Plasma Cannon Autogun > --- INVENTORY (2) ---- AWS/Gauss Peak State ------------ > --- POWER ------------ Light Nuclear Core > --- PROPULSION ------- Potential Leg Potential Leg > --- UTILITY ---------- Signal Interpreter Terrain Scanner > --- WEAPON ----------- Guided Plasma Cannon Autogun > --- INVENTORY -------- AWS/Gauss [Rating: 36] Favorites ----------- Power Light Nuclear Core Engine Light Ion Engine Power Core Light Nuclear Core Propulsion Flight Unit Leg Potential Leg Flight Unit Flight Unit Utility Terrain Scanner Device Terrain Scanner Processor Signal Interpreter Weapon Autogun Energy Gun EM Shotgun Energy Cannon Guided Plasma Cannon Ballistic Gun Autogun Build | -11 -10 -10 -10 -9 ------- Run | Scr Mat Min Exi Min Slots Evolved 3 | 3 . . . . Power . | . . . . . Propulsion 1 | 1 . . . . Utility 1 | 1 . . . . Weapon 1 | 1 . . . . Parts Attached 19 | 3 12 1 3 . Power 3 | 1 1 1 . . Engine 1 | 1 . . . . Core 2 | . 1 1 . . Reactor . | . . . . . Propulsion 5 | . 3 . 2 . Treads . | . . . . . Leg 2 | . . . 2 . Wheel . | . . . . . Hover . | . . . . . Flight 3 | . 3 . . . Utility 2 | . 2 . . . Device 1 | . 1 . . . Storage . | . . . . . Processor 1 | . 1 . . . Hackware . | . . . . . Protection . | . . . . . Artifact . | . . . . . Weapon 9 | 2 6 . 1 . Energy Gun 3 | 1 2 . . . Energy Cannon 1 | . . . 1 . Ballistic Gun 5 | 1 4 . . . Ballistic Cannon . | . . . . . Launcher . | . . . . . Special Weapon . | . . . . . Impact Weapon . | . . . . . Slashing Weapon . | . . . . . Piercing Weapon . | . . . . . Special Melee Weapon . | . . . . . Unidentified Prototypes . | . . . . . Parts Lost . | . . . . . Power . | . . . . . Propulsion . | . . . . . Utility . | . . . . . Weapon . | . . . . . Highest Loss Streak . | . . . . . Average Slot Usage (%) 92 | . 83 100 100 100 Engine 3 | . 7 . . . Core 10 | . 7 14 14 14 Leg 4 | . . . 16 28 Flight 19 | . 17 28 11 . Device 13 | . 13 14 14 14 Processor 12 | . 9 14 14 14 Energy Gun 3 | . 8 . . . Energy Cannon 1 | . . . 7 14 Ballistic Gun 22 | . 19 28 21 14 Naked Turns . | . . . . . Heaviest Build 19 | 7 12 12 19 19 Greatest Support 70 | 13 18 18 70 70 Greatest Overweight (x) . | . . . . . Average Overweight (x) . | . . . . . Largest Inventory Capacity 2 | 2 2 2 2 2 Average Capacity 2 | 2 2 2 2 2 Most Carried 2 | . 2 2 2 2 Average Carried 1 | . 1 2 1 2 Final Capacity 2 | 2 2 2 2 2 Final Carried 2 | . 2 2 2 2 Class Distribution -------------------- 94% | Mutant 5% | Hacker-Mutant Dominant Class ---------------- Mutant | -10/Materials Mutant | -10/Mines Mutant | -10/Exiles Hacker-Mutant | -9/Mines Resources | -11 -10 -10 -10 -9 ----------- Run | Scr Mat Min Exi Min Matter Collected 944 | 230 406 266 . 42 Remotely . | . . . . . Salvage Created 961 | . 478 374 . 109 Parts 52 | . 29 20 . 3 Haulers Intercepted 1 | . 1 . . . Recyclers Shooed . | . . . . . Parts Field Recycled . | . . . . . Retrieved Matter . | . . . . . Parts Self-Destructed . | . . . . . Prevented . | . . . . . Kills | -11 -10 -10 -10 -9 ------- Run | Scr Mat Min Exi Min Combat Hostiles Destroyed 29 | . 11 10 . 8 Guns 22 | . 11 10 . 1 Cannons 7 | . . . . 7 Classes Destroyed 7 | . 6 . . 1 Worker 1 | . 1 . . . Builder 1 | . 1 . . . Hauler 1 | . 1 . . . Watcher 1 | . 1 . . . Swarmer 12 | . 3 6 . 3 Grunt 12 | . 8 4 . . Assembled 5 | . . . . 5 Best Kill Streak 5 | . 5 3 . 5 Combat Bots Only 5 | . 4 3 . 5 Max Kills in Single Turn 2 | . 1 2 . 1 Gunslinging 1 | . . 1 . . Exploded . | . . . . . Melee . | . . . . . Uniques/NPCs Destroyed . | . . . . . Combat | -11 -10 -10 -10 -9 -------- Run | Scr Mat Min Exi Min Damage Taken 1345 | . 730 236 . 379 Core 1096 | . 591 192 . 313 Absorbed by Shields . | . . . . . Redirected to Core 822 | . 456 142 . 224 Core Remaining (%) 100 | 100 . . . . Volleys Fired 113 | . 67 26 . 20 Largest 2 | . 2 2 . 1 Hottest 120 | . 90 46 . 120 Shots Fired 184 | . 112 52 . 20 Gun 167 | . 112 52 . 3 Cannon 17 | . . . . 17 Launcher . | . . . . . Special . | . . . . . Kinetic 141 | . 86 52 . 3 Thermal 27 | . 10 . . 17 Explosive . | . . . . . Electromagnetic 16 | . 16 . . . Robot Hit Streak 9 | . 9 5 . 8 Robot Miss Streak 4 | . 3 4 . 1 Penetration Max . | . . . . . Secondary Targets 6 | . 4 2 . . Max Gunslinging Chain 1 | . 1 1 . . Shots Hit Robots 114 | . 77 27 . 10 Core Hits 46 | . 25 13 . 8 Critical Hits 1 | . . . . 1 Critical Kills . | . . . . . Critical Parts Destroyed 1 | . . . . 1 Melee Attacks . | . . . . . Impact . | . . . . . Slashing . | . . . . . Piercing . | . . . . . Sneak Attacks . | . . . . . Combat Hostiles . | . . . . . Follow-up Attacks . | . . . . . Damage Inflicted 2384 | . 1245 497 . 642 Guns 1682 | . 1182 468 . 32 Cannons 610 | . . . . 610 Explosions 92 | . 63 29 . . Melee . | . . . . . Ramming . | . . . . . Kinetic 1366 | . 866 468 . 32 Thermal 776 | . 137 29 . 610 Explosive . | . . . . . Electromagnetic 242 | . 242 . . . Impact . | . . . . . Slashing . | . . . . . Piercing . | . . . . . Highest Corruption . | . . . . . Average Corruption . | . . . . . Corruption Purged . | . . . . . Overload Shots . | . . . . . Overflow Damage 15 | . . 4 . 11 Projectiles 11 | . . . . 11 Explosions 4 | . . 4 . . Melee . | . . . . . Knockbacks . | . . . . . Impact . | . . . . . Kinetic . | . . . . . Secondary . | . . . . . Self-Inflicted Damage 47 | . 47 . . . Shots 1 | . 1 . . . Rammed . | . . . . . Targets Rammed . | . . . . . Kicked . | . . . . . Crushed . | . . . . . Highest Temperature 304 | . 304 . . 182 Average Temperature 94 | . 98 . . 66 Received Heat Transfer 490 | . 318 72 . 100 Effects 3 | . 3 . . . Interference 3 | . 3 . . . Siege Activations . | . . . . . Robots Corrupted . | . . . . . Combat Hostiles . | . . . . . Parts Fried 1 | . 1 . . . Impact Corruptions . | . . . . . Robots Melted . | . . . . . Combat Hostiles . | . . . . . Parts Melted . | . . . . . Heat Transferred 1682 | . 272 50 . 1360 Parts Sabotaged . | . . . . . Parts Stolen . | . . . . . Parts Stripped . | . . . . . Power Chain Reactions 1 | . 1 . . . Missiles Intercepted . | . . . . . Alert | -11 -10 -10 -10 -9 ------- Run | Scr Mat Min Exi Min Peak Influence 399 | . 399 285 . 70 Average Influence 142 | . 154 159 . 56 Maximum Alert Level 2 | . 2 1 . . Low Security (%) 65 | 100 64 56 . 100 Level 1 34 | . 35 43 . . Level 2 . | . . . . . Level 3 . | . . . . . Level 4 . | . . . . . Level 5 . | . . . . . High Security . | . . . . . Max Security . | . . . . . Squads Dispatched 3 | . 3 . . . Investigation 3 | . 3 . . . Extermination . | . . . . . Reinforcement . | . . . . . Assault . | . . . . . Garrison . | . . . . . Intercept . | . . . . . Construction Impeded . | . . . . . Haulers Reinforced . | . . . . . Stealth | -11 -10 -10 -10 -9 --------- Run | Scr Mat Min Exi Min Distress Signals 2 | . 2 . . . Communications Jammed . | . . . . . Distress Signals . | . . . . . Times Spotted 44 | . 19 11 . 14 Peak Tracking Total 10 | . 5 2 . 10 Tactical Retreats 3 | . 1 1 . 1 Traps | -11 -10 -10 -10 -9 ------- Run | Scr Mat Min Exi Min Traps Triggered . | . . . . . Indirectly . | . . . . . Trap Hack Attempts . | . . . . . Triggered . | . . . . . Disarmed . | . . . . . Reprogrammed . | . . . . . Reused . | . . . . . Traps Extracted . | . . . . . Installed . | . . . . . Triggered . | . . . . . Machines | -11 -10 -10 -10 -9 ---------- Run | Scr Mat Min Exi Min Machines Disabled 1 | . . 1 . . Max in Single Turn 1 | . . 1 . . Machines Sabotaged . | . . . . . Garrisons Compromised . | . . . . . Overloaded Fab Kills . | . . . . . Fab Network Shutdowns . | . . . . . Hacking | -11 -10 -10 -10 -9 --------- Run | Scr Mat Min Exi Min Machines Accessed 8 | . 7 . 1 . Terminals 5 | . 5 . . . Fabricators . | . . . . . Repair Stations . | . . . . . Recycling Units 2 | . 2 . . . Scanalyzers . | . . . . . Garrison Access . | . . . . . Total Hacks 14 | . 13 . 1 . Successful 8 | . 7 . 1 . Failed 6 | . 6 . . . Catastrophic . | . . . . . Database Lockouts . | . . . . . Manual 13 | . 11 . 2 . Terminals 11 | . 11 . . . Fabricators . | . . . . . Repair Stations . | . . . . . Recycling Units 2 | . 2 . . . Scanalyzers . | . . . . . Garrison Access . | . . . . . Terminal Hacks 6 | . 5 . 1 . Branch Access Points 1 | . 1 . . . Recycling Unit Index 2 | . 2 . . . Unreport Threat 1 | . 1 . . . Investigation Status 1 | . 1 . . . EX-Prototype ID Bank 1 | . . . 1 . Fabricator Hacks . | . . . . . Repair Station Hacks . | . . . . . Recycling Unit Hacks . | . . . . . Scanalyzer . | . . . . . Garrison Access Hacks . | . . . . . Unauthorized Hacks 5 | . 5 . . . Terminals . | . . . . . Fabricators . | . . . . . Repair Stations . | . . . . . Recycling Units 2 | . 2 . . . Tunnel 2 | . 2 . . . Scanalyzers . | . . . . . Garrison Access . | . . . . . Data Cores Recovered . | . . . . . Used . | . . . . . Hacking Detections 3 | . 3 . . . Full Trace Events 1 | . 1 . . . Feedback Events . | . . . . . Feedback Blocked . | . . . . . Robot Schematics Acquired . | . . . . . Robots Built . | . . . . . Matter . | . . . . . Time . | . . . . . Total Robot Build Rating . | . . . . . Part Schematics Acquired . | . . . . . Parts Built . | . . . . . Matter . | . . . . . Time . | . . . . . Total Part Build Rating . | . . . . . Parts Repaired . | . . . . . Time . | . . . . . Parts Recycled . | . . . . . Recycled Matter . | . . . . . Retrieved Matter . | . . . . . Retrieved Components . | . . . . . Parts Scanalyzed . | . . . . . Part Schematics Acquired . | . . . . . Parts Damaged . | . . . . . Bothacking | -11 -10 -10 -10 -9 ------------ Run | Scr Mat Min Exi Min Used RIF Installer . | . . . . . Robots Hacked . | . . . . . Non-combat . | . . . . . Combat . | . . . . . Robot Hacks Applied . | . . . . . Relay Couplers Released . | . . . . . Robots Rewired . | . . . . . Allies Hacked . | . . . . . Hacks Repelled . | . . . . . Allies | -11 -10 -10 -10 -9 -------- Run | Scr Mat Min Exi Min Total Allies . | . . . . . Largest Group . | . . . . . Highest-Rated Group . | . . . . . Highest-Rated Ally . | . . . . . Total Orders . | . . . . . Ally Attacks . | . . . . . Total Damage . | . . . . . Kills . | . . . . . Allies Corrupted . | . . . . . Allies Melted . | . . . . . Intel | -11 -10 -10 -10 -9 ------- Run | Scr Mat Min Exi Min Robot Analysis Total . | . . . . . Derelict Logs Recovered 2 | . . 2 . . Drone Launches . | . . . . . Drone Recoveries . | . . . . . Exploration | -11 -10 -10 -10 -9 ------------- Run | Scr Mat Min Exi Min Turns Passed 1014 | 24 439 356 103 92 Spaces Moved 1561 | 40 472 730 222 97 Core 60 | 40 19 . 1 . Treads . | . . . . . Legs 195 | . . . 98 97 Wheels . | . . . . . Hover . | . . . . . Flight 1306 | . 453 730 123 . Fastest Speed 37 | 50 37 37 37 45 Average Speed 39 | 50 39 37 41 45 Slowest Speed 90 | 50 50 37 90 45 Overloaded Moves 191 | . . . 94 97 Propulsion Burnouts . | . . . . . Robots Hopped 18 | . 7 11 . . Cave-ins Triggered . | . . . . . Exploration Rate (%) 53 | 3 73 99 61 31 Regions Visited 4 Branch Regions 3 Pre-discovered Areas 2 | . 2 . . . Known Exits Taken 3 | . 1 1 1 . Unknown Exits Taken 1 | 1 . . . . Scrap Searched 3 | . . 3 . . Spaces Dug . | . . . . . Terrain Destroyed 20 | . 5 15 . . Melee . | . . . . . Projectile . | . . . . . AOE 20 | . 5 15 . . Actions | -11 -10 -10 -10 -9 --------- Run | Scr Mat Min Exi Min Total 1782 | 42 618 763 233 126 Wait 71 | . 51 15 2 3 Move 1521 | 39 457 707 221 97 Hop 18 | . 7 11 . . Pick Up 7 | . 4 1 2 . Fast Attach 12 | 3 7 . 2 . Attach 1 | . 1 . . . Detach . | . . . . . Swap 6 | . 4 1 1 . Drop 13 | . 6 2 5 . Fire 113 | . 67 26 . 20 Melee . | . . . . . Ram . | . . . . . Kick . | . . . . . Crush . | . . . . . Escape Stasis . | . . . . . Rewire . | . . . . . Trap . | . . . . . Miscellaneous 20 | . 14 . . 6 Route ------- -11/Scrapyard -10/Materials (discovered 3 exits: *Mat x2 / *Min) -10/Mines (discovered 3 exits: *Mat x2 / *Exi) -10/Exiles -9/Mines History --------- Turn | Location | Event 1 | -11/Scrapyard | Upgraded with Propulsion slot (x1) 1 | -11/Scrapyard | Upgraded with Utility slot (x1) 1 | -11/Scrapyard | Upgraded with Weapon slot (x1) 6 | -11/Scrapyard | Discovered new exit (range 16) 25 | -11/Scrapyard | Entered Materials 48 | -10/Materials | Identified exit to Mines 120 | -10/Materials | Discovered new exit (range 16) 240 | -10/Materials | Core integrity fell below 50% 274 | -10/Materials | Discovered new exit (range 10) 305 | -10/Materials | Build established: Mutant 396 | -10/Materials | Reached level 2 464 | -10/Materials | Entered Mines 509 | -10/Mines | Deemed a non-threat by the Exiles lab entrance 509 | -10/Mines | Discovered new exit (range 5) 510 | -10/Mines | Identified exit to Exiles 611 | -10/Mines | Discovered new exit (range 16) 616 | -10/Mines | Received a Rocket Launcher from a helpful Derelict 665 | -10/Mines | Reached level 3 681 | -10/Mines | A weapon hastily lodged in a ceiling crevice suddenly fell to the ground 689 | -10/Mines | Discovered new exit (range 10) 693 | -10/Mines | Core integrity fell below 20% 707 | -10/Mines | Identified exit to Materials 820 | -10/Mines | Entered Exiles 829 | -10/Exiles | Met 8R-AWN 838 | -10/Exiles | Met EX-HEX 849 | -10/Exiles | Met EX-BIN 854 | -10/Exiles | Aligned with FarCom system 854 | -10/Exiles | Given EX-Vault access code 863 | -10/Exiles | Opened EX-Vault 867 | -10/Exiles | Found Potential Leg 869 | -10/Exiles | Found Potential Leg 874 | -10/Exiles | Found Gui. Plasma Cannon 878 | -10/Exiles | Found AWS/Gauss 888 | -10/Exiles | Warned to stay clear of 0b10 Research branches 901 | -10/Exiles | Met EX-DEC 916 | -10/Exiles | Discovered new exit (range 12) 921 | -10/Exiles | Identified exit to Mines 923 | -10/Exiles | Stole three prototypes: Potential Leg, Gui. Plasma Cannon, AWS/Gauss 923 | -10/Exiles | Entered Mines 939 | -9/Mines | Reached level 4 979 | -9/Mines | Assembled infested the area 1015 | -9/Mines | Destroyed by as-38780 with Assembled Heavy Rifle Last Messages --------------- Receiving FarCom transmissions... S-10 Pest destroyed. Destroyed Flight Unit. Reached level 4. S-10 Pest destroyed. Acquired 26 matter. Used Protomatter to restore core integrity (+42, depleted) Acquired 16 matter. Upgraded: Heat Dissipation (+24) Upgraded: Terrain Scan Density (+200) Upgraded: Ranged Accuracy (+10) Upgraded: Hack Attack % (+5) Upgraded: Hack Defense % (+5) ALERT: Infestation in the mines, dispatching Demolisher response squad. Upgraded: Sensor Range (+16) as-20639 destroyed. as-85627 destroyed. as-08475 destroyed. as-72365 destroyed. Used Protomatter to restore core integrity (+54, depleted) Map ----- +----------------------------------------------------+ | ???#???#?#?#??## ######### | | ????#??#?####### ###?#??## | | ????#?#?###?## !##?####?### | | ?????###?#### #######?## | | ????#???#?## = ####?#?### | | ??#?#???#??# ###?##?##### | | ??#??#?????## ###?##?#### | | ???##??#?#??# [###?#####?# | | ??????####### ###??#?#### | | ???#?####### ############ | | ###?##??#### ######?##?####? | | ?##?####?## ##???#?###??#### | | ##?####### #######?#??##### | | #######?## ! ##?#?#?### | | ?######### #####???## | | ##?######## ### #?##?#???# | | #?####?##### [#### ##?#??#??# | | ################?# ####?###?? | | ###############?## #?##?###?# | | #?### ########### #?????#??? | | #### #######x #?#??#??#? | | #### ###### ####??#?#? | | ##?# #### x #####?##?? | | #### ##% x## x ###?##??#? | | #### #### x x ##????#??? | | ####a@##### ##????????? | | ##?# % ### #####????###?# | | #?## #### x####????###??? | | #?#####aa##### #######??#???? | | #####?# ##### ## ??#??? | | ####### ##### ?? ? ?????? | | ####### #?####x ?????????? | | #?##### ###### ?????#??? | | ####### ###### ??? ???? | | ##?#### x##? "???????? | | #?##### ## ???????? | | ?####?# # #### ??????? | | #?###?# x #?## ??????? | | #####?? ? ###?# ????????? | | ####?# ? ?????#??????????? | | ?#####? ??#???????????????? | | ?????## #?????????????????? | | ???????###???????????????????? | | ?????????????????????????????? | | ?????????????????????????????? | | ?????????????????????????????? | | | | | | | | | +----------------------------------------------------+ Best States ------------- Heat Dissipation 73 Energy Generation 14 Energy Capacity 160 Matter Stores 300 Matter Capacity 300 Sight Range 16 Robot Scan Range 16 Terrain Scan Range 14 Terrain Scan Density 610 Evasion (%) 62 Offensive Hacking 10 Defensive Hacking 10 Item Schematics ----------------- None Robot Schematics ------------------ None Fabricated ------------ Nothing Alien Tech Used ----------------- None Achievements -------------- None Challenges ------------ None RPGLIKE | -11 -10 -10 -10 -9 --------- Run | Scr Mat Min Exi Min Levels Raised 3 | . 1 1 . 1 XP Earned 7695 | 3000 1720 1775 350 850 XP Spent 7470 | 2950 . 640 60 3820 Upgrades 37 | 9 . 8 2 18 Propulsion Slot 1 | 1 . . . . Utility Slot 1 | 1 . . . . Weapon Slot 1 | 1 . . . . Core Integrity 2 | . . . 2 . Heat Dissipation 8 | . . 4 . 4 Mass Support 2 | 2 . . . . Inventory Capacity 2 | 2 . . . . Sensor Range 8 | . . . . 8 Terrain Scan Density 6 | . . 4 . 2 Ranged Accuracy 2 | . . . . 2 Hack Attack % 2 | 1 . . . 1 Hack Defense % 2 | 1 . . . 1 Protomatter Created 203 | . 137 19 . 47 Integrity Restored 410 | . 290 . . 120 Core 395 | . 275 . . 120 Parts 15 | . 15 . . . Protomatter Decayed 59 | . 40 19 . . Game ------ Seed HellfireMasterNanovents Manual? 0 Play Time 00:16:46 Cumulative 77.0 hours Start 2019.12.17 @ 13:55:35 End 2019.12.17 @ 18:10:49 Sessions 2 Manual Loads 0 Difficulty Rogue Special Mode Winter2019/RPGLIKE Game No. 190 Rogue 190 Adventurer 0 Explorer 0 Win Type - Total 1 Types 1/0/0/0/0/0/0 Lore% 73 Gallery% 66 Achievement% 56 Wizard Run 0 Options --------- ASCII 0 Keyboard 0 Movement Numpad Keybinds 0 Fullscreen 1 Font 24/Smallcaps Map View 76x50 Tactical HUD 0 Map Filters NONE Filters NONE Steam 1 RUN: 5fcd74a6-b3b8-44b2-a682-c3a3544d5719